[Event "Titled Tuesday Blitz June 13 Early 2023"]
[White "Tarasova, Viktoriya"]
[Black "Venkatesh, M.R."]
[WhiteFideId "4175840"]
[BlackFideId "5005779"]
[WhiteElo "2182"]
[BlackElo "2450"]
[Result "0-1"]
[Round "7"]
[TimeControl "180+2"]
[Date "2023.06.13"]
[WhiteClock "0:00:04"]
[BlackClock "0:00:31"]
[Board "143"]

1. d4 {[%clk 0:03:00]}  Nf6 {[%clk 0:02:55]} 2. c4 {[%clk 0:03:00]}  e6 {[%clk 0:02:51]} 3. Nc3 {[%clk 0:03:00]}  Bb4 {[%clk 0:02:50]} 4. Nf3 {[%clk 0:03:00]}  O-O {[%clk 0:02:48]} 5. Bg5 {[%clk 0:02:59]}  c5 {[%clk 0:02:44]} 6. Rc1 {[%clk 0:02:57]}  h6 {[%clk 0:02:43]} 7. Bh4 {[%clk 0:02:56]}  Nc6 {[%clk 0:02:40]} 8. e3 {[%clk 0:02:55]}  cxd4 {[%clk 0:02:33]} 9. exd4 {[%clk 0:02:53]}  d5 {[%clk 0:02:32]} 10. cxd5 {[%clk 0:02:50]}  exd5 {[%clk 0:02:29]} 11. Be2 {[%clk 0:02:50]}  g5 {[%clk 0:02:13]} 12. Bg3 {[%clk 0:02:49]}  Ne4 {[%clk 0:02:12]} 13. O-O {[%clk 0:02:45]}  Nxg3 {[%clk 0:02:09]} 14. hxg3 {[%clk 0:02:32]}  Be6 {[%clk 0:02:08]} 15. a3 {[%clk 0:02:28]}  Bd6 {[%clk 0:02:04]} 16. Re1 {[%clk 0:02:22]}  g4 {[%clk 0:01:59]} 17. Nh2 {[%clk 0:02:09]}  h5 {[%clk 0:01:57]} 18. Nf1 {[%clk 0:02:00]}  Qg5 {[%clk 0:01:52]} 19. b4 {[%clk 0:01:18]}  Rac8 {[%clk 0:01:45]} 20. Bb5 {[%clk 0:00:51]}  Ne7 {[%clk 0:01:27]} 21. Ne2 {[%clk 0:00:47]}  Nf5 {[%clk 0:01:19]} 22. Qd2 {[%clk 0:00:41]}  Qxd2 {[%clk 0:01:10]} 23. Nxd2 {[%clk 0:00:40]}  Kg7 {[%clk 0:01:08]} 24. Nb3 {[%clk 0:00:37]}  b6 {[%clk 0:00:59]} 25. Rxc8 {[%clk 0:00:32]}  Rxc8 {[%clk 0:00:59]} 26. Rc1 {[%clk 0:00:33]}  Rh8 {[%clk 0:00:48]} 27. Bd3 {[%clk 0:00:18]}  h4 {[%clk 0:00:46]} 28. gxh4 {[%clk 0:00:18]}  Nxh4 {[%clk 0:00:43]} 29. Ng3 {[%clk 0:00:16]}  Bd7 {[%clk 0:00:39]} 30. Kf1 {[%clk 0:00:10]}  f5 {[%clk 0:00:38]} 31. Ne2 {[%clk 0:00:09]}  f4 {[%clk 0:00:36]} 32. Re1 {[%clk 0:00:08]}  f3 {[%clk 0:00:33]} 33. gxf3 {[%clk 0:00:08]}  Nxf3 {[%clk 0:00:33]} 34. Rd1 {[%clk 0:00:04]}  Rh1+ {[%clk 0:00:31]} 0-1


[Site "https://www.chess.com"]

[Event "Titled Tuesday Blitz June 13 Early 2023"]
[White "Zavgorodniy, Sergiy"]
[Black "Davidson, Kevin"]
[WhiteFideId "14110148"]
[BlackFideId "2056810"]
[WhiteElo "2402"]
[BlackElo "2151"]
[Result "1-0"]
[Round "7"]
[TimeControl "180+2"]
[Date "2023.06.13"]
[WhiteClock "0:01:55"]
[BlackClock "0:00:13"]
[Board "144"]

1. d4 {[%clk 0:03:00]}  Nf6 {[%clk 0:02:58]} 2. c4 {[%clk 0:03:01]}  g6 {[%clk 0:02:58]} 3. Nc3 {[%clk 0:03:00]}  Bg7 {[%clk 0:02:58]} 4. e4 {[%clk 0:03:00]}  d6 {[%clk 0:02:59]} 5. Be2 {[%clk 0:02:58]}  O-O {[%clk 0:02:58]} 6. Nf3 {[%clk 0:02:57]}  e5 {[%clk 0:02:57]} 7. O-O {[%clk 0:02:56]}  Nc6 {[%clk 0:02:57]} 8. d5 {[%clk 0:02:56]}  Ne7 {[%clk 0:02:57]} 9. Ne1 {[%clk 0:02:51]}  Nd7 {[%clk 0:02:57]} 10. Be3 {[%clk 0:02:51]}  f5 {[%clk 0:02:57]} 11. f3 {[%clk 0:02:47]}  f4 {[%clk 0:02:50]} 12. Bf2 {[%clk 0:02:45]}  g5 {[%clk 0:02:50]} 13. a4 {[%clk 0:02:39]}  a5 {[%clk 0:02:50]} 14. Nd3 {[%clk 0:02:39]}  b6 {[%clk 0:02:47]} 15. b4 {[%clk 0:02:40]}  Ng6 {[%clk 0:02:33]} 16. bxa5 {[%clk 0:02:20]}  Rxa5 {[%clk 0:02:32]} 17. Nb5 {[%clk 0:02:20]}  Nf6 {[%clk 0:02:12]} 18. Nb4 {[%clk 0:02:19]}  Ra8 {[%clk 0:01:45]} 19. Nc6 {[%clk 0:02:19]}  Qd7 {[%clk 0:01:45]} 20. a5 {[%clk 0:02:19]}  bxa5 {[%clk 0:01:41]} 21. Rxa5 {[%clk 0:02:17]}  Rxa5 {[%clk 0:01:40]} 22. Nxa5 {[%clk 0:02:17]}  g4 {[%clk 0:01:40]} 23. Kh1 {[%clk 0:02:14]}  Rf7 {[%clk 0:01:16]} 24. c5 {[%clk 0:02:14]}  gxf3 {[%clk 0:00:46]} 25. gxf3 {[%clk 0:02:11]}  dxc5 {[%clk 0:00:39]} 26. Nc6 {[%clk 0:02:07]}  Qh3 {[%clk 0:00:35]} 27. Rg1 {[%clk 0:02:04]}  Nh4 {[%clk 0:00:30]} 28. Nxe5 {[%clk 0:01:58]}  Re7 {[%clk 0:00:25]} 29. Bf1 {[%clk 0:01:55]}  Rxe5 {[%clk 0:00:16]} 30. Bxh3 {[%clk 0:01:55]}  Bxh3 {[%clk 0:00:13]} 31. Bxh4 {[%clk 0:01:55]} 1-0


[Site "https://www.chess.com"]

[Event "Titled Tuesday Blitz June 13 Early 2023"]
[White "Shapiro, Daniel"]
[Black "Tokman, Ariel"]
[WhiteFideId "2001780"]
[BlackFideId "117420"]
[WhiteElo "2342"]
[BlackElo "2263"]
[Result "1-0"]
[Round "7"]
[TimeControl "180+2"]
[Date "2023.06.13"]
[WhiteClock "0:00:08"]
[BlackClock "0:00:00"]
[Board "148"]

1. d4 {[%clk 0:03:00]}  d6 {[%clk 0:02:58]} 2. e4 {[%clk 0:02:59]}  Nf6 {[%clk 0:02:58]} 3. Nc3 {[%clk 0:02:59]}  g6 {[%clk 0:02:57]} 4. h3 {[%clk 0:02:58]}  Bg7 {[%clk 0:02:58]} 5. Nge2 {[%clk 0:02:58]}  O-O {[%clk 0:02:57]} 6. g4 {[%clk 0:02:57]}  e5 {[%clk 0:02:56]} 7. Be3 {[%clk 0:02:56]}  Nc6 {[%clk 0:02:55]} 8. Bg2 {[%clk 0:02:56]}  Re8 {[%clk 0:02:54]} 9. O-O {[%clk 0:02:51]}  Rb8 {[%clk 0:02:39]} 10. a4 {[%clk 0:02:47]}  a6 {[%clk 0:02:34]} 11. Rb1 {[%clk 0:02:38]}  b5 {[%clk 0:02:33]} 12. axb5 {[%clk 0:02:39]}  axb5 {[%clk 0:02:34]} 13. b4 {[%clk 0:02:35]}  Bxg4 {[%clk 0:02:08]} 14. hxg4 {[%clk 0:02:17]}  Nxg4 {[%clk 0:02:09]} 15. d5 {[%clk 0:02:01]}  Qh4 {[%clk 0:01:59]} 16. Re1 {[%clk 0:01:58]}  Nxe3 {[%clk 0:01:30]} 17. fxe3 {[%clk 0:01:57]}  Bh6 {[%clk 0:01:27]} 18. Qd3 {[%clk 0:01:45]}  Ne7 {[%clk 0:01:24]} 19. Rf1 {[%clk 0:01:39]}  Kg7 {[%clk 0:01:20]} 20. Rf3 {[%clk 0:01:38]}  Ng8 {[%clk 0:01:17]} 21. Rbf1 {[%clk 0:01:37]}  Rf8 {[%clk 0:01:09]} 22. Nxb5 {[%clk 0:01:29]}  Qe7 {[%clk 0:01:08]} 23. c3 {[%clk 0:01:20]}  Bg5 {[%clk 0:01:06]} 24. Na7 {[%clk 0:01:15]}  Ra8 {[%clk 0:01:05]} 25. Nc6 {[%clk 0:01:13]}  Qd7 {[%clk 0:01:05]} 26. Bh3 {[%clk 0:01:05]}  Qe8 {[%clk 0:01:05]} 27. Nc1 {[%clk 0:00:35]}  Ne7 {[%clk 0:00:59]} 28. Nxe7 {[%clk 0:00:24]}  Qxe7 {[%clk 0:01:00]} 29. Nb3 {[%clk 0:00:24]}  Bh6 {[%clk 0:00:57]} 30. Na5 {[%clk 0:00:23]}  Qg5+ {[%clk 0:00:43]} 31. Kh2 {[%clk 0:00:22]}  f6 {[%clk 0:00:39]} 32. Rg3 {[%clk 0:00:20]}  Qh4 {[%clk 0:00:36]} 33. Qe2 {[%clk 0:00:20]}  Kh8 {[%clk 0:00:32]} 34. Qg4 {[%clk 0:00:19]}  Qxg4 {[%clk 0:00:31]} 35. Bxg4 {[%clk 0:00:20]}  Bg5 {[%clk 0:00:27]} 36. Kg2 {[%clk 0:00:19]}  h5 {[%clk 0:00:26]} 37. Be6 {[%clk 0:00:19]}  Kg7 {[%clk 0:00:27]} 38. Rc1 {[%clk 0:00:17]}  Kh6 {[%clk 0:00:25]} 39. Kf3 {[%clk 0:00:17]}  Bh4 {[%clk 0:00:22]} 40. Rg2 {[%clk 0:00:17]}  g5 {[%clk 0:00:09]} 41. c4 {[%clk 0:00:16]}  g4+ {[%clk 0:00:09]} 42. Ke2 {[%clk 0:00:16]}  Kg5 {[%clk 0:00:07]} 43. Bf5 {[%clk 0:00:16]}  Kh6 {[%clk 0:00:06]} 44. Kd3 {[%clk 0:00:16]}  Ra7 {[%clk 0:00:04]} 45. c5 {[%clk 0:00:16]}  dxc5 {[%clk 0:00:04]} 46. Rxc5 {[%clk 0:00:17]}  Rb8 {[%clk 0:00:03]} 47. Rgc2 {[%clk 0:00:17]}  Rxb4 {[%clk 0:00:03]} 48. Nc6 {[%clk 0:00:14]}  Ra3+ {[%clk 0:00:02]} 49. R2c3 {[%clk 0:00:13]}  Rbb3 {[%clk 0:00:02]} 50. Rxb3 {[%clk 0:00:12]}  Rxb3+ {[%clk 0:00:03]} 51. Kd2 {[%clk 0:00:12]}  Rb2+ {[%clk 0:00:03]} 52. Rc2 {[%clk 0:00:12]}  Rb3 {[%clk 0:00:03]} 53. Ne7 {[%clk 0:00:11]}  Bg5 {[%clk 0:00:03]} 54. Rxc7 {[%clk 0:00:10]}  Bxe3+ {[%clk 0:00:03]} 55. Ke2 {[%clk 0:00:10]}  Bd4 {[%clk 0:00:02]} 56. Be6 {[%clk 0:00:09]}  Re3+ {[%clk 0:00:02]} 57. Kd2 {[%clk 0:00:09]}  Kg5 {[%clk 0:00:03]} 58. Nf5 {[%clk 0:00:08]}  Ra3 {[%clk 0:00:02]} 59. Nxd4 {[%clk 0:00:08]}  exd4 {[%clk 0:00:01]} 60. d6 {[%clk 0:00:08]}  Ra6 {[%clk 0:00:02]} 61. d7 {[%clk 0:00:07]}  Rd6 {[%clk 0:00:00]} 62. Rc8 {[%clk 0:00:08]} 1-0


[Site "https://www.chess.com"]

[Event "Titled Tuesday Blitz June 13 Early 2023"]
[White "Jiganchine, Roman"]
[Black "Bilan, Danila"]
[WhiteFideId "2603667"]
[BlackFideId "24161918"]
[WhiteElo "2309"]
[BlackElo "2146"]
[Result "1-0"]
[Round "7"]
[TimeControl "180+2"]
[Date "2023.06.13"]
[WhiteClock "0:00:19"]
[BlackClock "0:00:00"]
[Board "150"]

1. e4 {[%clk 0:02:59]}  c6 {[%clk 0:03:00]} 2. d4 {[%clk 0:02:57]}  d5 {[%clk 0:03:01]} 3. exd5 {[%clk 0:02:57]}  cxd5 {[%clk 0:03:01]} 4. Nf3 {[%clk 0:02:57]}  Nf6 {[%clk 0:03:01]} 5. c3 {[%clk 0:02:52]}  Nc6 {[%clk 0:03:00]} 6. Ne5 {[%clk 0:02:46]}  g6 {[%clk 0:02:55]} 7. Bb5 {[%clk 0:02:42]}  Bd7 {[%clk 0:02:54]} 8. Nxd7 {[%clk 0:02:38]}  Qxd7 {[%clk 0:02:55]} 9. O-O {[%clk 0:02:38]}  Bg7 {[%clk 0:02:52]} 10. Re1 {[%clk 0:02:38]}  O-O {[%clk 0:02:49]} 11. Bf4 {[%clk 0:02:35]}  a6 {[%clk 0:02:48]} 12. Bf1 {[%clk 0:02:27]}  b5 {[%clk 0:02:44]} 13. Nd2 {[%clk 0:02:22]}  b4 {[%clk 0:02:31]} 14. cxb4 {[%clk 0:02:03]}  Nxd4 {[%clk 0:02:23]} 15. Nb3 {[%clk 0:01:32]}  Nxb3 {[%clk 0:02:01]} 16. Qxb3 {[%clk 0:01:32]}  Ne4 {[%clk 0:01:47]} 17. Rad1 {[%clk 0:01:29]}  Nf6 {[%clk 0:01:22]} 18. Be5 {[%clk 0:01:22]}  e6 {[%clk 0:01:20]} 19. h3 {[%clk 0:01:19]}  Qb7 {[%clk 0:01:09]} 20. Be2 {[%clk 0:01:13]}  Ne4 {[%clk 0:01:03]} 21. Bxg7 {[%clk 0:01:10]}  Kxg7 {[%clk 0:01:04]} 22. Bf3 {[%clk 0:01:08]}  Nd6 {[%clk 0:01:01]} 23. Qc3+ {[%clk 0:01:04]}  Kg8 {[%clk 0:01:02]} 24. h4 {[%clk 0:01:04]}  Rab8 {[%clk 0:00:53]} 25. a3 {[%clk 0:01:04]}  Qb5 {[%clk 0:00:34]} 26. h5 {[%clk 0:01:03]}  Qc4 {[%clk 0:00:32]} 27. Qf6 {[%clk 0:01:00]}  Ne8 {[%clk 0:00:27]} 28. Qe5 {[%clk 0:00:54]}  Qc7 {[%clk 0:00:24]} 29. Qg5 {[%clk 0:00:51]}  Qd8 {[%clk 0:00:20]} 30. Qg3 {[%clk 0:00:48]}  Rc8 {[%clk 0:00:18]} 31. h6 {[%clk 0:00:43]}  Qf6 {[%clk 0:00:16]} 32. Rc1 {[%clk 0:00:34]}  Rxc1 {[%clk 0:00:16]} 33. Rxc1 {[%clk 0:00:34]}  g5 {[%clk 0:00:11]} 34. Rc8 {[%clk 0:00:33]}  Qxh6 {[%clk 0:00:10]} 35. Qb8 {[%clk 0:00:32]}  Nf6 {[%clk 0:00:10]} 36. g3 {[%clk 0:00:27]}  g4 {[%clk 0:00:10]} 37. Bg2 {[%clk 0:00:26]}  Qc1+ {[%clk 0:00:06]} 38. Rxc1 {[%clk 0:00:22]}  Rxb8 {[%clk 0:00:07]} 39. Rc6 {[%clk 0:00:22]}  Ra8 {[%clk 0:00:07]} 40. Bf1 {[%clk 0:00:21]}  a5 {[%clk 0:00:07]} 41. b5 {[%clk 0:00:20]}  Kf8 {[%clk 0:00:07]} 42. b6 {[%clk 0:00:20]}  Ke7 {[%clk 0:00:07]} 43. b7 {[%clk 0:00:19]}  Rb8 {[%clk 0:00:07]} 44. Ba6 {[%clk 0:00:19]}  Kd7 {[%clk 0:00:00]} 45. Rc8 {[%clk 0:00:19]} 1-0


[Site "https://www.chess.com"]

[Event "Titled Tuesday Blitz June 13 Early 2023"]
[White "Bueno, Alfeu Junior Varela"]
[Black "Zaksaite, Salomeja"]
[WhiteFideId "2108879"]
[BlackFideId "12801496"]
[WhiteElo "2175"]
[BlackElo "2059"]
[Result "1-0"]
[Round "7"]
[TimeControl "180+2"]
[Date "2023.06.13"]
[WhiteClock "0:00:12"]
[BlackClock "0:00:00"]
[Board "154"]

1. e4 {[%clk 0:03:00]}  e5 {[%clk 0:02:58]} 2. Nc3 {[%clk 0:03:01]}  Nf6 {[%clk 0:02:57]} 3. f4 {[%clk 0:03:01]}  d5 {[%clk 0:02:55]} 4. fxe5 {[%clk 0:03:01]}  Nxe4 {[%clk 0:02:53]} 5. Qf3 {[%clk 0:03:02]}  Nc6 {[%clk 0:02:51]} 6. Bb5 {[%clk 0:03:01]}  Nxc3 {[%clk 0:01:57]} 7. dxc3 {[%clk 0:03:02]}  Qh4+ {[%clk 0:01:46]} 8. g3 {[%clk 0:03:01]}  Qe4+ {[%clk 0:01:46]} 9. Qxe4 {[%clk 0:03:02]}  dxe4 {[%clk 0:01:46]} 10. Bxc6+ {[%clk 0:03:03]}  bxc6 {[%clk 0:01:46]} 11. Be3 {[%clk 0:03:03]}  Bg4 {[%clk 0:01:41]} 12. h3 {[%clk 0:02:57]}  Bh5 {[%clk 0:01:41]} 13. g4 {[%clk 0:02:56]}  Bg6 {[%clk 0:01:41]} 14. Ne2 {[%clk 0:02:56]}  h5 {[%clk 0:01:38]} 15. Kf2 {[%clk 0:02:46]}  O-O-O {[%clk 0:01:12]} 16. Nf4 {[%clk 0:02:43]}  Be7 {[%clk 0:00:58]} 17. Nxg6 {[%clk 0:02:35]}  fxg6 {[%clk 0:00:58]} 18. Rad1 {[%clk 0:02:29]}  Rxd1 {[%clk 0:00:52]} 19. Rxd1 {[%clk 0:02:24]}  hxg4 {[%clk 0:00:53]} 20. hxg4 {[%clk 0:02:24]}  Rh2+ {[%clk 0:00:53]} 21. Kg3 {[%clk 0:02:22]}  Rxc2 {[%clk 0:00:53]} 22. Rd2 {[%clk 0:02:23]}  Rxd2 {[%clk 0:00:43]} 23. Bxd2 {[%clk 0:02:23]}  g5 {[%clk 0:00:30]} 24. Be3 {[%clk 0:02:23]}  a6 {[%clk 0:00:25]} 25. c4 {[%clk 0:01:55]}  Kd7 {[%clk 0:00:22]} 26. Bd4 {[%clk 0:01:54]}  Ke6 {[%clk 0:00:20]} 27. Kf2 {[%clk 0:01:53]}  g6 {[%clk 0:00:19]} 28. Ke3 {[%clk 0:01:53]}  Bf8 {[%clk 0:00:13]} 29. Kxe4 {[%clk 0:01:53]}  Bg7 {[%clk 0:00:12]} 30. Bc3 {[%clk 0:01:41]}  c5 {[%clk 0:00:12]} 31. b3 {[%clk 0:01:36]}  c6 {[%clk 0:00:11]} 32. Bb2 {[%clk 0:01:28]}  Bh8 {[%clk 0:00:11]} 33. Bc1 {[%clk 0:00:52]}  Bxe5 {[%clk 0:00:10]} 34. Bxg5 {[%clk 0:00:52]}  Bd4 {[%clk 0:00:09]} 35. Bh4 {[%clk 0:00:35]}  Kd7 {[%clk 0:00:08]} 36. Bg5 {[%clk 0:00:29]}  Kd6 {[%clk 0:00:03]} 37. Bf4+ {[%clk 0:00:27]}  Ke6 {[%clk 0:00:02]} 38. Bc7 {[%clk 0:00:24]}  Kd7 {[%clk 0:00:02]} 39. Bb6 {[%clk 0:00:24]}  Ke6 {[%clk 0:00:02]} 40. b4 {[%clk 0:00:24]}  Bc3 {[%clk 0:00:02]} 41. Bxc5 {[%clk 0:00:23]}  Be1 {[%clk 0:00:02]} 42. a4 {[%clk 0:00:22]}  Bd2 {[%clk 0:00:02]} 43. a5 {[%clk 0:00:15]}  Be1 {[%clk 0:00:02]} 44. b5 {[%clk 0:00:13]}  cxb5 {[%clk 0:00:02]} 45. cxb5 {[%clk 0:00:13]}  Bxa5 {[%clk 0:00:00]} 46. bxa6 {[%clk 0:00:12]} 1-0


[Site "https://www.chess.com"]

[Event "Titled Tuesday Blitz June 13 Early 2023"]
[White "Mrudul Dehankar"]
[Black "Putri, Regita Desyari"]
[WhiteFideId "25096990"]
[BlackFideId "7109083"]
[WhiteElo "2139"]
[BlackElo "1930"]
[Result "0-1"]
[Round "7"]
[TimeControl "180+2"]
[Date "2023.06.13"]
[WhiteClock "0:00:00"]
[BlackClock "0:00:05"]
[Board "155"]

1. e4 {[%clk 0:02:55]}  e5 {[%clk 0:02:59]} 2. Nf3 {[%clk 0:02:55]}  Nc6 {[%clk 0:03:00]} 3. Bb5 {[%clk 0:02:56]}  a6 {[%clk 0:03:00]} 4. Ba4 {[%clk 0:02:56]}  Nf6 {[%clk 0:03:00]} 5. O-O {[%clk 0:02:56]}  Be7 {[%clk 0:03:01]} 6. Re1 {[%clk 0:02:49]}  b5 {[%clk 0:03:01]} 7. Bb3 {[%clk 0:02:48]}  d6 {[%clk 0:03:02]} 8. c3 {[%clk 0:02:43]}  O-O {[%clk 0:03:02]} 9. h3 {[%clk 0:02:42]}  Bb7 {[%clk 0:03:03]} 10. d4 {[%clk 0:02:42]}  Re8 {[%clk 0:03:03]} 11. Nbd2 {[%clk 0:02:30]}  Bf8 {[%clk 0:03:02]} 12. Ng5 {[%clk 0:02:28]}  Re7 {[%clk 0:03:01]} 13. Ngf3 {[%clk 0:01:43]}  Re8 {[%clk 0:02:53]} 14. a4 {[%clk 0:01:27]}  h6 {[%clk 0:02:47]} 15. Bc2 {[%clk 0:01:09]}  exd4 {[%clk 0:02:43]} 16. cxd4 {[%clk 0:01:09]}  Nb4 {[%clk 0:02:43]} 17. Bb1 {[%clk 0:01:09]}  c5 {[%clk 0:02:43]} 18. d5 {[%clk 0:00:52]}  c4 {[%clk 0:02:38]} 19. Ra3 {[%clk 0:00:50]}  Nd7 {[%clk 0:02:37]} 20. Nd4 {[%clk 0:00:38]}  Qb6 {[%clk 0:02:10]} 21. N2f3 {[%clk 0:00:25]}  Nc5 {[%clk 0:02:08]} 22. Be3 {[%clk 0:00:21]}  bxa4 {[%clk 0:01:20]} 23. Nf5 {[%clk 0:00:16]}  Qc7 {[%clk 0:01:15]} 24. Nd2 {[%clk 0:00:12]}  Ncd3 {[%clk 0:01:06]} 25. Rf1 {[%clk 0:00:13]}  Nxb2 {[%clk 0:00:44]} 26. Qc1 {[%clk 0:00:12]}  g6 {[%clk 0:00:31]} 27. Nxh6+ {[%clk 0:00:09]}  Bxh6 {[%clk 0:00:31]} 28. Bxh6 {[%clk 0:00:07]}  Rab8 {[%clk 0:00:24]} 29. Qxb2 {[%clk 0:00:06]}  f5 {[%clk 0:00:22]} 30. Qf6 {[%clk 0:00:06]}  Qf7 {[%clk 0:00:22]} 31. Qg5 {[%clk 0:00:06]}  Nd3 {[%clk 0:00:19]} 32. Bxd3 {[%clk 0:00:06]}  cxd3 {[%clk 0:00:19]} 33. Rxd3 {[%clk 0:00:06]}  Re5 {[%clk 0:00:17]} 34. Rg3 {[%clk 0:00:03]}  Kh7 {[%clk 0:00:13]} 35. Qh4 {[%clk 0:00:03]}  Kg8 {[%clk 0:00:11]} 36. Bf4 {[%clk 0:00:03]}  Re7 {[%clk 0:00:10]} 37. Qg5 {[%clk 0:00:04]}  Rbe8 {[%clk 0:00:07]} 38. Bxd6 {[%clk 0:00:04]}  Rd7 {[%clk 0:00:06]} 39. e5 {[%clk 0:00:04]}  Bxd5 {[%clk 0:00:05]} 40. h4 {[%clk 0:00:04]}  Re6 {[%clk 0:00:03]} 41. h5 {[%clk 0:00:05]}  a3 {[%clk 0:00:01]} 42. hxg6 {[%clk 0:00:05]}  Qg7 {[%clk 0:00:02]} 43. Rxa3 {[%clk 0:00:03]}  Rxg6 {[%clk 0:00:02]} 44. f4 {[%clk 0:00:01]}  Rxg5 {[%clk 0:00:02]} 45. fxg5 {[%clk 0:00:01]}  Qxg5 {[%clk 0:00:03]} 46. Nf3 {[%clk 0:00:02]}  Bxf3 {[%clk 0:00:03]} 47. Raxf3 {[%clk 0:00:02]}  Kf7 {[%clk 0:00:03]} 48. Kf2 {[%clk 0:00:02]}  Ke6 {[%clk 0:00:04]} 49. Kg1 {[%clk 0:00:02]}  Rxd6 {[%clk 0:00:04]} 50. exd6 {[%clk 0:00:02]}  Kxd6 {[%clk 0:00:05]} 51. Rxf5 {[%clk 0:00:02]}  Qe3+ {[%clk 0:00:05]} 52. Kh2 {[%clk 0:00:03]}  Qh6+ {[%clk 0:00:05]} 53. Kg3 {[%clk 0:00:02]}  Qg6+ {[%clk 0:00:05]} 54. Kf4 {[%clk 0:00:02]}  Ke6 {[%clk 0:00:05]} 55. Re5+ {[%clk 0:00:02]}  Kd6 {[%clk 0:00:04]} 56. Re2 {[%clk 0:00:02]}  Qf6+ {[%clk 0:00:04]} 57. Ke3 {[%clk 0:00:00]}  Qxf1 {[%clk 0:00:05]} 0-1


[Site "https://www.chess.com"]

[Event "Titled Tuesday Blitz June 13 Early 2023"]
[White "Chakravarthi Reddy, M"]
[Black "Kuznetsov, Mikhail"]
[WhiteFideId "25009532"]
[BlackFideId "4117190"]
[WhiteElo "2201"]
[BlackElo "1981"]
[Result "1-0"]
[Round "7"]
[TimeControl "180+2"]
[Date "2023.06.13"]
[WhiteClock "0:00:33"]
[BlackClock "0:00:32"]
[Board "157"]

1. e4 {[%clk 0:03:00]}  c6 {[%clk 0:02:55]} 2. d4 {[%clk 0:03:00]}  d5 {[%clk 0:02:56]} 3. e5 {[%clk 0:02:59]}  Bf5 {[%clk 0:02:55]} 4. h4 {[%clk 0:02:59]}  h5 {[%clk 0:02:54]} 5. Bd3 {[%clk 0:02:58]}  Bxd3 {[%clk 0:02:55]} 6. Qxd3 {[%clk 0:02:58]}  e6 {[%clk 0:02:55]} 7. Nf3 {[%clk 0:02:58]}  c5 {[%clk 0:02:56]} 8. dxc5 {[%clk 0:02:53]}  Bxc5 {[%clk 0:02:53]} 9. O-O {[%clk 0:02:49]}  Nc6 {[%clk 0:02:53]} 10. Bg5 {[%clk 0:02:39]}  Nge7 {[%clk 0:02:51]} 11. Nbd2 {[%clk 0:02:36]}  O-O {[%clk 0:02:47]} 12. c3 {[%clk 0:02:35]}  Qd7 {[%clk 0:02:47]} 13. Ne4 {[%clk 0:02:26]}  Bb6 {[%clk 0:02:35]} 14. Nf6+ {[%clk 0:02:00]}  gxf6 {[%clk 0:02:34]} 15. Bxf6 {[%clk 0:02:01]}  Ng6 {[%clk 0:02:29]} 16. Qd2 {[%clk 0:01:58]}  Kh7 {[%clk 0:02:18]} 17. Ng5+ {[%clk 0:01:57]}  Kg8 {[%clk 0:02:19]} 18. Nf3 {[%clk 0:01:51]}  Kh7 {[%clk 0:02:17]} 19. Qg5 {[%clk 0:01:52]}  Rh8 {[%clk 0:01:52]} 20. Qxh5+ {[%clk 0:01:51]}  Kg8 {[%clk 0:01:52]} 21. Bxh8 {[%clk 0:01:49]}  Nxh8 {[%clk 0:01:52]} 22. Ng5 {[%clk 0:01:41]}  Ng6 {[%clk 0:01:51]} 23. Qh7+ {[%clk 0:01:34]}  Kf8 {[%clk 0:01:51]} 24. h5 {[%clk 0:01:35]}  Ngxe5 {[%clk 0:01:32]} 25. Qh8+ {[%clk 0:01:30]}  Ke7 {[%clk 0:01:33]} 26. Qxa8 {[%clk 0:01:28]}  Ng4 {[%clk 0:01:31]} 27. Qg8 {[%clk 0:01:21]}  Nce5 {[%clk 0:01:29]} 28. Rae1 {[%clk 0:01:15]}  Qa4 {[%clk 0:01:13]} 29. Nxf7 {[%clk 0:01:12]}  Qf4 {[%clk 0:01:08]} 30. Qg5+ {[%clk 0:01:05]}  Qxg5 {[%clk 0:01:04]} 31. Nxg5 {[%clk 0:01:06]}  Kf6 {[%clk 0:00:57]} 32. Nh3 {[%clk 0:00:51]}  Nd3 {[%clk 0:00:51]} 33. Re2 {[%clk 0:00:51]}  e5 {[%clk 0:00:51]} 34. g3 {[%clk 0:00:48]}  e4 {[%clk 0:00:51]} 35. Kg2 {[%clk 0:00:48]}  Kf5 {[%clk 0:00:48]} 36. Rd1 {[%clk 0:00:38]}  Nge5 {[%clk 0:00:40]} 37. Nf4 {[%clk 0:00:36]}  Nxf4+ {[%clk 0:00:22]} 38. gxf4 {[%clk 0:00:37]}  Nd3 {[%clk 0:00:23]} 39. Rxd3 {[%clk 0:00:35]}  exd3 {[%clk 0:00:24]} 40. Re5+ {[%clk 0:00:35]}  Kxf4 {[%clk 0:00:24]} 41. Rxd5 {[%clk 0:00:36]}  d2 {[%clk 0:00:24]} 42. h6 {[%clk 0:00:32]}  Bc7 {[%clk 0:00:21]} 43. Rxd2 {[%clk 0:00:27]}  Be5 {[%clk 0:00:22]} 44. Rd7 {[%clk 0:00:27]}  Kg5 {[%clk 0:00:22]} 45. h7 {[%clk 0:00:25]}  Kg6 {[%clk 0:00:23]} 46. Rxb7 {[%clk 0:00:26]}  a5 {[%clk 0:00:24]} 47. Rb5 {[%clk 0:00:25]}  Bf6 {[%clk 0:00:23]} 48. Rb6 {[%clk 0:00:24]}  Kxh7 {[%clk 0:00:24]} 49. Rxf6 {[%clk 0:00:24]}  Kg7 {[%clk 0:00:24]} 50. Rf5 {[%clk 0:00:25]}  Kg6 {[%clk 0:00:24]} 51. Rxa5 {[%clk 0:00:25]}  Kf6 {[%clk 0:00:24]} 52. b4 {[%clk 0:00:26]}  Ke7 {[%clk 0:00:25]} 53. b5 {[%clk 0:00:27]}  Kd7 {[%clk 0:00:26]} 54. Ra6 {[%clk 0:00:27]}  Kc7 {[%clk 0:00:27]} 55. Rc6+ {[%clk 0:00:28]}  Kb7 {[%clk 0:00:28]} 56. a4 {[%clk 0:00:29]}  Kb8 {[%clk 0:00:28]} 57. a5 {[%clk 0:00:30]}  Kb7 {[%clk 0:00:29]} 58. a6+ {[%clk 0:00:30]}  Kb8 {[%clk 0:00:30]} 59. c4 {[%clk 0:00:31]}  Ka8 {[%clk 0:00:31]} 60. c5 {[%clk 0:00:32]}  Kb8 {[%clk 0:00:32]} 61. b6 {[%clk 0:00:33]}  Ka8 {[%clk 0:00:32]} 62. Rc8# {[%clk 0:00:33]} 1-0


[Site "https://www.chess.com"]

[Event "Titled Tuesday Blitz June 13 Early 2023"]
[White "agvania123"]
[Black "Palczert, Matyas"]
[BlackFideId "784958"]
[WhiteElo "2255"]
[BlackElo "2224"]
[Result "0-1"]
[Round "7"]
[TimeControl "180+2"]
[Date "2023.06.13"]
[WhiteClock "0:00:18"]
[BlackClock "0:00:35"]
[Board "158"]

1. c4 {[%clk 0:03:00]}  Nf6 {[%clk 0:02:57]} 2. Nc3 {[%clk 0:03:00]}  e6 {[%clk 0:02:52]} 3. d4 {[%clk 0:02:59]}  c5 {[%clk 0:02:49]} 4. Nf3 {[%clk 0:02:57]}  cxd4 {[%clk 0:02:47]} 5. Nxd4 {[%clk 0:02:56]}  Nc6 {[%clk 0:02:47]} 6. e4 {[%clk 0:02:54]}  Bb4 {[%clk 0:02:45]} 7. Nxc6 {[%clk 0:02:53]}  bxc6 {[%clk 0:02:43]} 8. e5 {[%clk 0:02:49]}  Ne4 {[%clk 0:02:41]} 9. Qc2 {[%clk 0:02:47]}  Qa5 {[%clk 0:02:29]} 10. Qxe4 {[%clk 0:02:20]}  Bxc3+ {[%clk 0:02:27]} 11. Kd1 {[%clk 0:02:20]}  Bxe5 {[%clk 0:02:19]} 12. Bd2 {[%clk 0:02:17]}  Qc7 {[%clk 0:02:18]} 13. Kc2 {[%clk 0:02:08]}  d5 {[%clk 0:02:16]} 14. Qf3 {[%clk 0:02:09]}  O-O {[%clk 0:02:13]} 15. Bd3 {[%clk 0:02:05]}  Rb8 {[%clk 0:02:11]} 16. Rab1 {[%clk 0:02:03]}  g6 {[%clk 0:02:05]} 17. h4 {[%clk 0:02:01]}  Bg7 {[%clk 0:02:03]} 18. h5 {[%clk 0:02:01]}  e5 {[%clk 0:02:03]} 19. hxg6 {[%clk 0:02:00]}  fxg6 {[%clk 0:02:02]} 20. Qg3 {[%clk 0:01:56]}  Qe7 {[%clk 0:01:26]} 21. Bg5 {[%clk 0:01:49]}  Qc5 {[%clk 0:01:22]} 22. Be3 {[%clk 0:01:31]}  d4 {[%clk 0:01:15]} 23. Qh4 {[%clk 0:01:30]}  h5 {[%clk 0:00:53]} 24. Bxg6 {[%clk 0:01:05]}  Qxc4+ {[%clk 0:00:41]} 25. Kd1 {[%clk 0:00:50]}  Bg4+ {[%clk 0:00:39]} 26. f3 {[%clk 0:00:27]}  dxe3 {[%clk 0:00:36]} 27. fxg4 {[%clk 0:00:18]}  Qd4+ {[%clk 0:00:35]} 0-1


[Site "https://www.chess.com"]